fUSD/lending_fUSD_20250525
["ID","MTS","AMOUNT","RATE_DAILY","PERIOD"]
[362349184,1748208662919,-277.64,0.00019994,2]
[362349185,1748208662929,-250.0,0.00019994,2]
[362349186,1748208662938,-420.0,0.00019994,2]
[362349187,1748208662948,-420.0,0.00019994,2]
[362349188,1748208662958,-420.0,0.00019994,2]
[362349189,1748208662967,-420.0,0.00019994,2]
[362349190,1748208662978,-420.0,0.00019994,2]
[362349191,1748208662987,-420.0,0.00019994,2]
[362349192,1748208662998,-420.0,0.00019994,2]
[362349193,1748208663008,-420.0,0.00019994,2]
[362349194,1748208663017,-420.0,0.00019994,2]
[362349195,1748208663026,-152.77,0.00019994,2]
[362349196,1748208663036,-420.0,0.00019994,2]
[362349197,1748208663045,-420.0,0.00019994,2]
[362349198,1748208663054,-307.98,0.00019994,2]
[362349199,1748208663063,-556.9,0.00019994,2]
[362349200,1748208663072,-567.33,0.00019994,2]
[362349201,1748208663082,-420.0,0.00019994,2]
[362349202,1748208663091,-420.0,0.00019994,2]
[362349203,1748208663100,-420.0,0.00019994,2]
[362349204,1748208663110,-503.72,0.00019994,2]
[362349205,1748208663119,-420.0,0.00019994,2]
[362349206,1748208663128,-431.15,0.00019994,2]
[362349207,1748208663137,-420.0,0.00019994,2]
[362349208,1748208663146,-420.0,0.00019994,2]
[362349209,1748208663155,-420.0,0.00019994,2]
[362349210,1748208663164,-420.0,0.00019994,2]
[362349211,1748208663174,-420.0,0.00019994,2]
[362349212,1748208663183,-420.0,0.00019994,2]
[362349213,1748208663192,-420.0,0.00019994,2]
[362349214,1748208663201,-422.63075863,0.00019994,2]
[362349215,1748208663210,-420.0,0.00019994,2]
[362349216,1748208663219,-420.0,0.00019994,2]
[362349217,1748208663228,-420.0,0.00019994,2]
[362349218,1748208663237,-420.0,0.00019994,2]
[362349219,1748208663247,-420.0,0.00019994,2]
[362349220,1748208663256,-420.0,0.00019994,2]
[362349221,1748208663265,-420.0,0.00019994,2]
[362349222,1748208663275,-420.0,0.00019994,2]
[362349223,1748208663283,-223.56,0.00019994,2]
[362349224,1748208663292,-266.13,0.00019994,2]
[362349225,1748208663302,-388.13,0.00019994,2]
[362349226,1748208663310,-420.0,0.00019994,2]
[362349227,1748208663319,-400.0,0.00019994,2]
[362349228,1748208663328,-426.4141803,0.00019994,2]
[362349229,1748208663337,-420.0,0.00019994,2]
[362349230,1748208663347,-500.0,0.00019994,2]
[362349231,1748208663356,-423.26077129,0.00019994,2]
[362349232,1748208663366,-420.0,0.00019994,2]
[362349233,1748208663375,-420.0,0.00019994,2]
[362349234,1748208663385,-168.35,0.00019994,2]
[362349235,1748208663395,-290.62,0.00019994,2]
[362349236,1748208663404,-420.0,0.00019994,2]
[362349237,1748208663414,-249.43,0.00019994,2]
[362349238,1748208663423,-420.0,0.00019994,2]
[362349239,1748208663433,-420.0,0.00019994,2]
[362349240,1748208663442,-420.0,0.00019994,2]
[362349241,1748208663451,-420.0,0.00019994,2]
[362349242,1748208663461,-420.0,0.00019994,2]
[362349243,1748208663470,-445.96,0.00019994,2]
[362349244,1748208663480,-420.0,0.00019994,2]
[362349245,1748208663489,-420.0,0.00019994,2]
[362349246,1748208663499,-420.0,0.00019994,2]
[362349247,1748208663508,-420.0,0.00019994,2]
[362349248,1748208663517,-420.0,0.00019994,2]
[362349249,1748208663527,-420.0,0.00019994,2]
[362349250,1748208663536,-277.35,0.00019994,2]
[362349251,1748208663545,-420.0,0.00019994,2]
[362349252,1748208663555,-420.0,0.00019994,2]
[362349253,1748208663564,-420.0,0.00019994,2]
[362349254,1748208663574,-420.0,0.00019994,2]
[362349255,1748208663584,-420.0,0.00019994,2]
[362349256,1748208663593,-420.0,0.00019994,2]
[362349257,1748208663603,-420.0,0.00019994,2]
[362349258,1748208663612,-248.04,0.00019994,2]
[362349259,1748208663622,-420.0,0.00019994,2]
[362349260,1748208663631,-420.0,0.00019994,2]
[362349261,1748208663641,-270.16,0.00019994,2]
[362349262,1748208663651,-420.0,0.00019994,2]
[362349263,1748208663660,-198.19,0.00019994,2]
[362349264,1748208663670,-420.0,0.00019994,2]
[362349265,1748208663679,-227.62,0.00019994,2]
[362349266,1748208663688,-420.0,0.00019994,2]
[362349267,1748208663698,-420.0,0.00019994,2]
[362349268,1748208663707,-420.0,0.00019994,2]
[362349269,1748208663717,-456.01,0.00019994,2]
[362349270,1748208663726,-196.13,0.00019994,2]
[362349271,1748208663735,-420.0,0.00019994,2]
[362349272,1748208663745,-420.0,0.00019994,2]
[362349273,1748208663754,-420.0,0.00019994,2]
[362349274,1748208663763,-420.0,0.00019994,2]
[362349275,1748208663773,-420.0,0.00019994,2]
[362349276,1748208663783,-420.0,0.00019994,2]
[362349277,1748208663792,-420.0,0.00019994,2]
[362349278,1748208663801,-420.0,0.00019994,2]
[362349279,1748208663811,-351.08,0.00019994,2]
[362349280,1748208663820,-420.0,0.00019994,2]
[362349281,1748208663830,-420.0,0.00019994,2]
[362349282,1748208663839,-420.0,0.00019994,2]
[362349283,1748208663849,-420.0,0.00019994,2]
[362349284,1748208663858,-420.0,0.00019994,2]
[362349285,1748208663867,-420.0,0.00019994,2]
[362349286,1748208663877,-420.0,0.00019994,2]
[362349287,1748208663887,-420.0,0.00019994,2]
[362349288,1748208663896,-420.0,0.00019994,2]
[362349289,1748208663906,-420.0,0.00019994,2]
[362349290,1748208663917,-420.0,0.00019994,2]
[362349291,1748208663926,-420.0,0.00019994,2]
[362349292,1748208663936,-369.13,0.00019994,2]
[362349293,1748208663946,-450.64,0.00019994,2]
[362349294,1748208663955,-420.0,0.00019994,2]
[362349295,1748208663964,-420.0,0.00019994,2]
[362349296,1748208663974,-420.0,0.00019994,2]
[362349297,1748208663983,-420.0,0.00019994,2]
[362349298,1748208664146,-420.0,0.00019994,2]
[362349299,1748208664156,-420.0,0.00019994,2]
[362349300,1748208664165,-420.0,0.00019994,2]
[362349301,1748208664175,-370.86,0.00019994,2]
[362349302,1748208664184,-493.22,0.00019994,2]
[362349303,1748208664193,-420.0,0.00019994,2]
[362349304,1748208664202,-420.0,0.00019994,2]
[362349305,1748208664212,-420.0,0.00019994,2]
[362349306,1748208664221,-420.0,0.00019994,2]
[362349307,1748208664230,-218.29,0.00019994,2]
[362349308,1748208664240,-420.0,0.00019994,2]
[362349309,1748208664249,-420.0,0.00019994,2]
[362349310,1748208664259,-419.56,0.00019994,2]
[362349311,1748208664268,-439.51,0.00019994,2]
[362349312,1748208664277,-420.0,0.00019994,2]
[362349313,1748208664287,-420.0,0.00019994,2]
[362349314,1748208664296,-420.0,0.00019994,2]
[362349315,1748208664306,-420.0,0.00019994,2]
[362349316,1748208664316,-394.1,0.00019994,2]
[362349317,1748208664325,-420.0,0.00019994,2]
[362349318,1748208664335,-420.0,0.00019994,2]
[362349319,1748208664345,-170.7,0.00019994,2]
[362349320,1748208664354,-469.03,0.00019994,2]
[362349321,1748208664365,-268.06,0.00019994,2]
[362349322,1748208664376,-194.56,0.00019994,2]
[362349323,1748208664386,-420.0,0.00019994,2]
[362349324,1748208664395,-420.0,0.00019994,2]
[362349325,1748208664405,-420.0,0.00019994,2]
[362349326,1748208664415,-420.0,0.00019994,2]
[362349327,1748208664425,-542.51267927,0.00019994,2]
[362349328,1748208664434,-420.0,0.00019994,2]
[362349329,1748208664443,-420.0,0.00019994,2]
[362349330,1748208664454,-473.36,0.00019994,2]
[362349331,1748208664464,-420.0,0.00019994,2]
[362349332,1748208664474,-420.0,0.00019994,2]
[362349333,1748208664484,-423.56,0.00019994,2]
[362349334,1748208664493,-487.0,0.00019994,2]
[362349335,1748208664502,-420.0,0.00019994,2]
[362349336,1748208664512,-420.0,0.00019994,2]
[362349337,1748208664521,-420.0,0.00019994,2]
[362349338,1748208664531,-460.1,0.00019994,2]
[362349339,1748208664541,-412.41,0.00019994,2]
[362349340,1748208664550,-277.71,0.00019994,2]
[362349341,1748208664559,-168.29,0.00019994,2]
[362349342,1748208664569,-420.0,0.00019994,2]
[362349343,1748208664578,-263.82,0.00019994,2]
[362349344,1748208664587,-420.0,0.00019994,2]
[362349345,1748208664596,-164.39,0.00019994,2]
[362349346,1748208664606,-420.0,0.00019994,2]
[362349347,1748208664615,-298.3,0.00019994,2]
[362349348,1748208664624,-299.17245906,0.00019994,2]
[362349349,1748208664633,-420.0,0.00019994,2]
[362349350,1748208664643,-250.41,0.00019994,2]
[362349351,1748208664652,-420.0,0.00019994,2]
[362349352,1748208664662,-343.04,0.00019994,2]
[362349353,1748208664672,-504.18606667,0.00019994,2]
[362349354,1748208664681,-420.0,0.00019994,2]
[362349355,1748208664691,-532.51,0.00019994,2]
[362349356,1748208664700,-290.45,0.00019994,2]
[362349357,1748208664709,-420.0,0.00019994,2]
[362349358,1748208664719,-182.97827416,0.00019994,2]
[362349359,1748208664744,-237.02172584,0.00019994,2]
[362349360,1748208664753,-360.19,0.00019994,2]
[362349361,1748208664763,-420.0,0.00019994,2]
[362349362,1748208664772,-420.0,0.00019994,2]
[362349363,1748208664782,-420.0,0.00019994,2]
[362349364,1748208664791,-420.0,0.00019994,2]
[362349365,1748208664800,-190.53,0.00019994,2]
[362349366,1748208664810,-420.0,0.00019994,2]
[362349367,1748208664819,-420.0,0.00019994,2]
[362349368,1748208664828,-278.2,0.00019994,2]
[362349369,1748208664837,-420.0,0.00019994,2]
[362349370,1748208664846,-420.0,0.00019994,2]
[362349371,1748208664856,-420.0,0.00019994,2]
[362349372,1748208664865,-443.12,0.00019994,2]
[362349373,1748208664875,-510.65,0.00019994,2]
[362349374,1748208664886,-420.0,0.00019994,2]
[362349375,1748208664897,-420.0,0.00019994,2]
[362349376,1748208664908,-437.73191088,0.00019994,2]
[362349377,1748208664920,-203.32,0.00019994,2]
[362349378,1748208664930,-420.0,0.00019994,2]
[362349379,1748208664942,-346.64,0.00019994,2]
[362349380,1748208664952,-420.0,0.00019994,2]
[362349381,1748208664962,-420.0,0.00019994,2]
[362349382,1748208664972,-420.0,0.00019994,2]
[362349383,1748208664983,-420.0,0.00019994,2]
[362349384,1748208664993,-420.0,0.00019994,2]
[362349385,1748208665003,-500.0,0.00019994,2]
[362349386,1748208665014,-535.68,0.00019994,2]
[362349387,1748208665024,-425.72794533,0.00019994,2]
[362349388,1748208665035,-420.0,0.00019994,2]
[362349389,1748208665044,-420.0,0.00019994,2]
[362349390,1748208665055,-420.0,0.00019994,2]
[362349391,1748208665066,-420.0,0.00019994,2]
[362349392,1748208665075,-500.0,0.00019994,2]
[362349393,1748208665086,-420.0,0.00019994,2]
[362349394,1748208665096,-420.0,0.00019994,2]
[362349395,1748208665106,-420.0,0.00019994,2]
[362349396,1748208665115,-420.0,0.00019994,2]
[362349397,1748208665127,-420.0,0.00019994,2]
[362349398,1748208665137,-422.88859008,0.00019994,2]
[362349399,1748208665147,-420.0,0.00019994,2]
[362349400,1748208665158,-420.0,0.00019994,2]
[362349401,1748208665167,-420.0,0.00019994,2]
[362349402,1748208665176,-420.0,0.00019994,2]
[362349403,1748208665185,-422.40163949,0.00019994,2]
[362349404,1748208665195,-255.4,0.00019994,2]
[362349405,1748208665204,-420.0,0.00019994,2]
[362349406,1748208665213,-420.0,0.00019994,2]
[362349407,1748208665223,-420.0,0.00019994,2]
[362349408,1748208665232,-420.0,0.00019994,2]
[362349409,1748208665242,-278.3855722,0.00019994,2]
[362349410,1748208665251,-427.24623127,0.00019994,2]
[362349411,1748208665261,-420.0,0.00019994,2]
[362349412,1748208665271,-423.55149305,0.00019994,2]
[362349413,1748208665280,-420.0,0.00019994,2]
[362349414,1748208665289,-420.0,0.00019994,2]
[362349415,1748208665299,-428.91,0.00019994,2]
[362349416,1748208665308,-420.0,0.00019994,2]
[362349417,1748208665318,-420.0,0.00019994,2]
[362349418,1748208665328,-420.0,0.00019994,2]
[362349419,1748208665338,-567.43,0.00019994,2]
[362349420,1748208665348,-420.0,0.00019994,2]
[362349421,1748208665357,-420.0,0.00019994,2]
[362349422,1748208665368,-189.84,0.00019994,2]
[362349423,1748208665377,-420.0,0.00019994,2]
[362349424,1748208665387,-420.0,0.00019994,2]
[362349425,1748208665396,-420.0,0.00019994,2]
[362349426,1748208665405,-420.0,0.00019994,2]
[362349427,1748208665415,-420.0,0.00019994,2]
[362349428,1748208665424,-1002.23787012,0.00019994,2]
[362349429,1748208665433,-248.0,0.00019994,2]
[362349430,1748208665442,-420.0,0.00019994,2]
[362349431,1748208665451,-420.0,0.00019994,2]
[362349432,1748208665461,-420.0,0.00019994,2]
[362349433,1748208665470,-420.0,0.00019994,2]
[362349434,1748208665479,-420.0,0.00019994,2]
[362349435,1748208665489,-420.0,0.00019994,2]
[362349436,1748208665498,-420.0,0.00019994,2]
[362349437,1748208665507,-450.0,0.00019994,2]
[362349438,1748208665517,-420.0,0.00019994,2]
[362349439,1748208665526,-340.01,0.00019994,2]
[362349440,1748208665536,-420.0,0.00019994,2]
[362349441,1748208665545,-421.35552622,0.00019994,2]
[362349442,1748208665555,-420.0,0.00019994,2]
[362349443,1748208665564,-889.4408928,0.00019994,2]
[362349444,1748208665578,-1130.7091072,0.00019994,2]
[362349445,1748208665588,-420.0,0.00019994,2]
[362349446,1748208665597,-420.0,0.00019994,2]
[362349447,1748208665606,-420.0,0.00019994,2]
[362349448,1748208665617,-423.25063819,0.00019994,2]
[362349449,1748208665626,-420.0,0.00019994,2]
[362349450,1748208665636,-422.3336937,0.00019994,2]
[362349451,1748208665645,-420.0,0.00019994,2]
[362349452,1748208665655,-420.0,0.00019994,2]
[362349453,1748208665664,-420.0,0.00019994,2]
[362349454,1748208665674,-420.0,0.00019994,2]
[362349455,1748208665683,-420.0,0.00019994,2]
[362349456,1748208665693,-420.0,0.00019994,2]
[362349457,1748208665702,-489.64,0.00019994,2]
[362349458,1748208665711,-420.0,0.00019994,2]
[362349459,1748208665721,-420.0,0.00019994,2]
[362349460,1748208665731,-420.0,0.00019994,2]
[362349461,1748208665740,-420.0,0.00019994,2]
[362349462,1748208665749,-420.0,0.00019994,2]
[362349463,1748208665759,-420.0,0.00019994,2]
[362349464,1748208665768,-420.0,0.00019994,2]
[362349465,1748208665777,-551.76,0.00019994,2]
[362349466,1748208665787,-420.0,0.00019994,2]
[362349467,1748208665796,-427.79,0.00019994,2]
[362349468,1748208665806,-420.0,0.00019994,2]
[362349469,1748208665816,-436.22,0.00019994,2]
[362349470,1748208665825,-420.0,0.00019994,2]
[362349471,1748208665835,-420.0,0.00019994,2]
[362349472,1748208665844,-420.0,0.00019994,2]
[362349473,1748208665853,-420.0,0.00019994,2]
[362349474,1748208665864,-420.0,0.00019994,2]
[362349475,1748208665874,-420.0,0.00019994,2]
[362349476,1748208665883,-420.0,0.00019994,2]
[362349477,1748208665892,-420.0,0.00019994,2]
[362349478,1748208665901,-206.22,0.00019994,2]
[362349479,1748208665911,-420.0,0.00019994,2]
[362349480,1748208665920,-420.0,0.00019994,2]
[362349481,1748208665930,-420.0,0.00019994,2]
[362349482,1748208665939,-213.34,0.00019994,2]
[362349483,1748208665948,-420.0,0.00019994,2]
[362349484,1748208665958,-420.0,0.00019994,2]
[362349485,1748208665967,-385.60160784,0.00019994,2]
[362349486,1748208665977,-420.0,0.00019994,2]
[362349487,1748208665987,-420.0,0.00019994,2]
[362349488,1748208665996,-420.0,0.00019994,2]
[362349489,1748208666005,-500.0,0.00019994,2]
[362349490,1748208666014,-420.0,0.00019994,2]
[362349491,1748208666024,-420.0,0.00019994,2]
[362349492,1748208666033,-420.0,0.00019994,2]
[362349493,1748208666042,-378.73,0.00019994,2]
[362349494,1748208666051,-420.0,0.00019994,2]
[362349495,1748208666060,-420.0,0.00019994,2]
[362349496,1748208666069,-420.0,0.00019994,2]
[362349497,1748208666078,-420.0,0.00019994,2]
[362349498,1748208666087,-420.0,0.00019994,2]
[362349499,1748208666096,-424.81733411,0.00019994,2]
[362349500,1748208666105,-422.26131576,0.00019994,2]
[362349501,1748208666115,-420.0,0.00019994,2]
[362349502,1748208666124,-420.0,0.00019994,2]
[362349503,1748208666133,-456.8,0.00019994,2]
[362349504,1748208666142,-383.04926044,0.00019994,2]
[362349505,1748208666151,-420.0,0.00019994,2]
[362349506,1748208666160,-420.0,0.00019994,2]
[362349507,1748208666169,-420.0,0.00019994,2]
[362349508,1748208666178,-420.0,0.00019994,2]
[362349509,1748208666187,-420.0,0.00019994,2]
[362349510,1748208666194,-420.0,0.00019994,2]
[362349511,1748208666202,-420.0,0.00019994,2]
[362349512,1748208666210,-420.0,0.00019994,2]
[362349513,1748208666218,-500.0,0.00019994,2]
[362349514,1748208666226,-423.77219445,0.00019994,2]
[362349515,1748208666234,-433.62,0.00019994,2]
[362349516,1748208666241,-420.0,0.00019994,2]
[362349517,1748208666249,-420.0,0.00019994,2]
[362349518,1748208666257,-420.0,0.00019994,2]
[362349519,1748208666266,-420.0,0.00019994,2]
[362349520,1748208666274,-420.0,0.00019994,2]
[362349521,1748208666282,-420.0,0.00019994,2]
[362349522,1748208666290,-420.0,0.00019994,2]
[362349523,1748208666298,-420.0,0.00019994,2]
[362349524,1748208666307,-420.0,0.00019994,2]
[362349525,1748208666317,-420.0,0.00019994,2]
[362349526,1748208666328,-420.0,0.00019994,2]
[362349527,1748208666338,-235.24,0.00019994,2]
[362349528,1748208666349,-420.0,0.00019994,2]
[362349529,1748208666360,-420.0,0.00019994,2]
[362349530,1748208666374,-420.0,0.00019994,2]
[362349531,1748208666385,-420.0,0.00019994,2]
[362349532,1748208666397,-420.0,0.00019994,2]
[362349533,1748208666408,-420.0,0.00019994,2]
[362349534,1748208666419,-420.0,0.00019994,2]
[362349535,1748208666429,-420.0,0.00019994,2]
[362349536,1748208666442,-420.0,0.00019994,2]
[362349537,1748208666454,-420.0,0.00019994,2]
[362349538,1748208666465,-420.0,0.00019994,2]
[362349539,1748208666476,-420.0,0.00019994,2]
[362349540,1748208666487,-425.78542429,0.00019994,2]
[362349541,1748208666497,-421.34901456,0.00019994,2]
[362349542,1748208666507,-420.0,0.00019994,2]
[362349543,1748208666518,-420.0,0.00019994,2]
[362349544,1748208666528,-554.0,0.00019994,2]
[362349545,1748208666537,-420.0,0.00019994,2]
[362349546,1748208666548,-420.0,0.00019994,2]
[362349547,1748208666558,-420.0,0.00019994,2]
[362349548,1748208666568,-420.0,0.00019994,2]
[362349549,1748208666578,-566.0058843,0.00019994,2]
[362349550,1748208666587,-420.0,0.00019994,2]
[362349551,1748208666598,-420.0,0.00019994,2]
[362349552,1748208666607,-420.0,0.00019994,2]
[362349553,1748208666616,-420.0,0.00019994,2]
[362349554,1748208666626,-420.0,0.00019994,2]
[362349555,1748208666636,-373.66,0.00019994,2]
[362349556,1748208666645,-506.44,0.00019994,2]
[362349557,1748208666655,-420.0,0.00019994,2]
[362349558,1748208666664,-420.0,0.00019994,2]
[362349559,1748208666673,-420.0,0.00019994,2]
[362349560,1748208666684,-420.0,0.00019994,2]
[362349561,1748208666695,-420.0,0.00019994,2]
[362349562,1748208666707,-420.0,0.00019994,2]
[362349563,1748208666722,-420.0,0.00019994,2]
[362349564,1748208666732,-242.7,0.00019994,2]
[362349565,1748208666741,-420.0,0.00019994,2]
[362349566,1748208666750,-420.0,0.00019994,2]
[362349567,1748208666760,-420.0,0.00019994,2]
[362349568,1748208666769,-420.0,0.00019994,2]
[362349569,1748208666779,-425.011853,0.00019994,2]
[362349570,1748208666788,-420.0,0.00019994,2]
[362349571,1748208666797,-224.7,0.00019994,2]
[362349572,1748208666806,-368.69,0.00019994,2]
[362349573,1748208666816,-420.0,0.00019994,2]
[362349574,1748208666826,-421.16512787,0.00019994,2]
[362349575,1748208666835,-420.0,0.00019994,2]
[362349576,1748208666845,-420.0,0.00019994,2]
[362349577,1748208666855,-420.0,0.00019994,2]
[362349578,1748208666864,-420.0,0.00019994,2]
[362349579,1748208666873,-423.64566696,0.00019994,2]
[362349580,1748208666883,-420.0,0.00019994,2]
[362349581,1748208666892,-420.0,0.00019994,2]
[362349582,1748208666902,-420.0,0.00019994,2]
[362349583,1748208666911,-420.0,0.00019994,2]
[362349584,1748208666921,-420.0,0.00019994,2]
[362349585,1748208666931,-423.07710128,0.00019994,2]
[362349586,1748208666940,-420.0,0.00019994,2]
[362349587,1748208666950,-420.0,0.00019994,2]
[362349588,1748208666959,-420.0,0.00019994,2]
[362349589,1748208666969,-420.0,0.00019994,2]
[362349590,1748208666979,-420.0,0.00019994,2]
[362349591,1748208666990,-420.0,0.00019994,2]
[362349592,1748208666999,-420.0,0.00019994,2]
[362349593,1748208667010,-420.0,0.00019994,2]
[362349594,1748208667020,-345.89,0.00019994,2]
[362349595,1748208667030,-420.0,0.00019994,2]
[362349596,1748208667039,-420.0,0.00019994,2]
[362349597,1748208667048,-461.99,0.00019994,2]
[362349598,1748208667057,-420.0,0.00019994,2]
[362349599,1748208667067,-420.0,0.00019994,2]
[362349600,1748208667220,-420.0,0.00019994,2]
[362349601,1748208667231,-420.0,0.00019994,2]
[362349602,1748208667242,-420.0,0.00019994,2]
[362349603,1748208667252,-420.0,0.00019994,2]
[362349604,1748208667263,-1106.8,0.00019994,2]
[362349605,1748208667273,-420.0,0.00019994,2]
[362349606,1748208667282,-420.0,0.00019994,2]
[362349607,1748208667292,-423.52195514,0.00019994,2]
[362349608,1748208667303,-420.0,0.00019994,2]
[362349609,1748208667313,-420.0,0.00019994,2]
[362349610,1748208667323,-420.0,0.00019994,2]
[362349611,1748208667333,-420.0,0.00019994,2]
[362349612,1748208667343,-420.0,0.00019994,2]
[362349613,1748208667353,-300.8,0.00019994,2]
[362349614,1748208667366,-425.29123412,0.00019994,2]
[362349615,1748208667378,-420.0,0.00019994,2]
[362349616,1748208667388,-420.0,0.00019994,2]
[362349617,1748208667397,-420.0,0.00019994,2]
[362349618,1748208667407,-420.0,0.00019994,2]
[362349619,1748208667416,-420.0,0.00019994,2]
[362349620,1748208667425,-420.0,0.00019994,2]
[362349621,1748208667434,-373.26,0.00019994,2]
[362349622,1748208667444,-469.94,0.00019994,2]
[362349623,1748208667453,-420.0,0.00019994,2]
[362349624,1748208667463,-420.0,0.00019994,2]
[362349625,1748208667472,-164.59,0.00019994,2]
[362349626,1748208667482,-420.0,0.00019994,2]
[362349627,1748208667491,-420.0,0.00019994,2]
[362349628,1748208667499,-420.0,0.00019994,2]
[362349629,1748208667509,-420.0,0.00019994,2]
[362349630,1748208667518,-302.17113239,0.00019994,2]
[362349631,1748208667528,-421.66674383,0.00019994,2]
[362349632,1748208667537,-420.0,0.00019994,2]
[362349633,1748208667547,-420.0,0.00019994,2]
[362349634,1748208667557,-425.93430917,0.00019994,2]
[362349635,1748208667567,-423.93150644,0.00019994,2]
[362349636,1748208667576,-5066.14947579,0.00019994,2]
[362349637,1748208667586,-420.0,0.00019994,2]
[362349638,1748208667596,-185.94,0.00019994,2]
[362349639,1748208667605,-524.34,0.00019994,2]
[362349640,1748208667614,-363.74,0.00019994,2]
[362349641,1748208667624,-420.0,0.00019994,2]
[362349642,1748208667634,-420.0,0.00019994,2]
[362349643,1748208667643,-420.0,0.00019994,2]
[362349644,1748208667653,-420.0,0.00019994,2]
[362349645,1748208667662,-2395.05014171,0.00019994,2]
[362349646,1748208667671,-420.0,0.00019994,2]
[362349647,1748208667681,-420.0,0.00019994,2]
[362349648,1748208667690,-420.0,0.00019994,2]
[362349649,1748208667700,-420.0,0.00019994,2]
[362349650,1748208667710,-555.97,0.00019994,2]
[362349651,1748208667719,-9463.32608703,0.00019994,2]
[362349652,1748208667729,-420.0,0.00019994,2]
[362349653,1748208667738,-420.0,0.00019994,2]
[362349654,1748208667748,-420.0,0.00019994,2]
[362349655,1748208667757,-420.0,0.00019994,2]
[362349656,1748208667766,-420.0,0.00019994,2]
[362349657,1748208667775,-420.0,0.00019994,2]
[362349658,1748208667784,-406.48,0.00019994,2]
[362349659,1748208667793,-498.26,0.00019994,2]
[362349660,1748208667803,-420.0,0.00019994,2]
[362349661,1748208667813,-420.0,0.00019994,2]
[362349662,1748208667823,-420.0,0.00019994,2]
[362349663,1748208667834,-420.0,0.00019994,2]
[362349664,1748208667845,-420.0,0.00019994,2]
[362349665,1748208667856,-420.0,0.00019994,2]
[362349666,1748208667867,-421.01440269,0.00019994,2]
[362349667,1748208667878,-420.0,0.00019994,2]
[362349668,1748208667889,-420.0,0.00019994,2]
[362349669,1748208667900,-504.22,0.00019994,2]
[362349670,1748208667910,-420.0,0.00019994,2]
[362349671,1748208667920,-420.0,0.00019994,2]
[362349672,1748208667929,-1239.8197103,0.00019995,2]
[362349673,1748208667939,-39462.4559847,0.00019995,2]
[362349674,1748208667948,-192.0081108,0.00019995,2]
[362349675,1748208667958,-235.8668478,0.00019995,2]
[362349676,1748208667967,-5514.7824869,0.00019995,2]
[362349677,1748208667976,-29830.1586082,0.00019995,2]
[362349678,1748208667986,-1244.5011018,0.00019995,2]
[362349679,1748208667995,-3589.4612675,0.00019995,2]
[362349680,1748208668005,-17934.9762325,0.00019995,2]
[362349681,1748208668014,-420.0,0.00019996,2]
[362349682,1748208668023,-420.0,0.00019996,2]
[362349683,1748208668033,-420.0,0.00019996,2]